bitfinex-derivatives/quotes_SOLF0:USTF0_20250211
["timestamp","ask_amount","ask_price","bid_price","bid_amount"]
[1739266395544,4.9017,203.98,203.97,0.03348222]
[1739266395843,4.9017,203.98,203.87,12.9672101]
[1739266396037,12.9672101,203.99,203.87,12.9672101]
[1739266397144,0.03302666,203.95,203.91,0.03741834]
[1739266397334,0.03302666,203.95,203.92,4.903]
[1739266397739,0.03302666,203.95,203.91,0.03741834]
[1739266398044,0.03302666,203.95,203.91,4.94071834]
[1739266398537,0.03302666,203.95,203.92,4.9031]
[1739266398841,0.03302666,203.95,203.91,0.03741834]
[1739266399242,0.03302666,203.95,203.91,4.94071834]
[1739266400345,0.03302666,203.95,203.91,0.03741834]
[1739266400944,0.03302666,203.95,203.92,4.9031]
[1739266401247,0.03302666,203.95,203.91,0.03741834]
[1739266401445,0.03302666,203.95,203.93,4.9029]
[1739266402346,0.03302666,203.95,203.91,4.94061834]
[1739266402544,0.03302666,203.95,203.91,0.03741834]
[1739266402846,0.03302666,203.95,203.93,4.9026]
[1739266403347,0.03302666,203.95,203.92,4.9031]
[1739266405346,0.03302666,203.95,203.91,0.03741834]
[1739266405648,0.03302666,203.95,203.91,4.94071834]
[1739266406149,12.9672101,203.92,203.77,12.9672101]
[1739266406352,12.9672101,203.89,203.77,12.9672101]
[1739266406650,4.9041,203.88,203.8,4.9058]
[1739266406849,12.9672101,203.89,203.77,12.9672101]
[1739266407044,12.9672101,203.89,203.74,12.9672101]
[1739266407240,12.9672101,203.89,203.81,0.03191782]
[1739266407449,0.03643136,203.85,203.81,0.03191782]
[1739266407848,0.03643136,203.85,203.84,4.905]
[1739266408950,0.03643136,203.85,203.82,4.9053]
[1739266409653,0.03643136,203.85,203.83,4.9052]
[1739266410854,0.03643136,203.85,203.84,4.905]
[1739266413654,3.0948,203.98,203.83,12.9672101]
[1739266413855,0.22361,203.96,203.87,12.9672101]
[1739266414255,0.22361,203.96,203.94,4.9026]
[1739266416060,0.22361,203.96,203.93,4.9389222]
[1739266416760,0.22361,203.96,203.93,0.0361222]
[1739266416959,12.9672101,203.94,203.84,1.559]
[1739266417159,12.9672101,203.91,203.81,206.9672101]
[1739266417359,12.9672101,203.91,203.84,4.905]
[1739266417555,12.9672101,203.91,203.81,194.0]
[1739266417858,12.9672101,203.91,203.84,4.905]
[1739266418059,0.03286962,203.88,203.84,0.03609823]
[1739266419062,0.03286962,203.88,203.86,4.9044]
[1739266419363,0.03286962,203.88,203.84,0.03609823]
[1739266420663,0.03286962,203.88,203.86,4.9044]
[1739266420857,0.03286962,203.88,203.84,0.03609823]
[1739266421256,0.03286962,203.88,203.87,4.9043]
[1739266424164,13.1908201,203.96,203.92,4.9029]
[1739266424365,0.22361,203.96,203.92,4.9029]
[1739266424566,0.22361,203.96,203.87,12.9672101]
[1739266424768,0.22361,203.96,203.95,4.9024]
[1739266426471,0.03364016,203.98,203.93,12.99992625]
[1739266426670,0.03364016,203.98,203.97,4.9019]
[1739266430272,0.03364016,203.98,203.93,0.03271615]
[1739266430472,0.03364016,203.98,203.97,4.9019]
[1739266431370,12.9672101,204.05,203.93,12.99992625]
[1739266431570,4.8998,204.06,203.96,12.9672101]
[1739266431871,1.76475,204.07,203.96,12.9672101]
[1739266432769,0.03529112,204.04,203.99,0.0320726]
[1739266434174,0.03529112,204.04,204.03,4.9005]
[1739266434676,0.03529112,204.04,203.99,0.0320726]
[1739266435676,0.03529112,204.04,204.01,4.9007]
[1739266435880,0.03529112,204.04,203.99,0.0320726]
[1739266436276,0.03529112,204.04,204.0,4.9011]
[1739266436578,0.03529112,204.04,203.99,0.0320726]
[1739266436971,0.03529112,204.04,204.0,4.9011]
[1739266437177,0.03529112,204.04,203.99,0.0320726]
[1739266437475,0.03529112,204.04,204.0,4.9011]
[1739266437675,0.03529112,204.04,203.99,0.0320726]
[1739266438073,0.03529112,204.04,204.0,4.901]
[1739266438384,4.93569112,204.04,204.0,4.901]
[1739266439078,4.9006,204.03,203.99,0.0320726]
[1739266439287,0.03529112,204.04,203.99,0.0320726]
[1739266439674,4.9005,204.03,203.99,4.9334726]
[1739266439876,0.03529112,204.04,203.99,0.0320726]
[1739266440983,0.03529112,204.04,204.0,4.9011]
[1739266441483,4.93559112,204.04,203.99,4.9334726]
[1739266441777,0.03529112,204.04,203.99,0.0320726]
[1739266444085,0.03529112,204.04,204.02,4.9007]
[1739266444284,0.03529112,204.04,203.99,0.0320726]
[1739266444984,0.03529112,204.04,204.01,4.9008]
[1739266445184,0.03529112,204.04,203.99,0.0320726]
[1739266445879,4.93559112,204.04,204.01,4.9009]
[1739266446080,0.03529112,204.04,203.99,0.0320726]
[1739266446582,4.9005,204.03,203.99,4.9334726]
[1739266447182,4.9011,204.01,203.99,0.0320726]
[1739266448283,14.4870101,204.03,203.99,0.0320726]
[1739266448483,19.3877101,204.03,203.99,0.0320726]
[1739266449087,4.901,204.01,203.99,0.0320726]
[1739266449289,14.4870101,204.03,203.99,0.0320726]
[1739266449790,15.9317101,204.03,203.99,0.0320726]
[1739266450490,4.9012,204.0,203.99,0.0320726]
[1739266451091,17.8684101,204.0,203.99,0.0320726]
[1739266451885,4.9021,203.97,203.9,194.0]
[1739266452185,12.9672101,204.0,203.89,1.5541]
[1739266452391,12.9672101,204.0,203.92,4.9031]
[1739266452587,12.9672101,203.97,203.87,1.4535]
[1739266452788,4.93584953,203.94,203.9,0.03320552]
[1739266453793,4.93584953,203.94,203.9,4.93680552]
[1739266453993,0.03314953,203.94,203.9,4.93680552]
[1739266454690,0.03314953,203.94,203.91,4.9033]
[1739266455096,0.03314953,203.94,203.9,0.03320552]
[1739266455596,0.03314953,203.94,203.93,4.9029]
[1739266456697,0.03314953,203.94,203.9,0.03320552]
[1739266457701,0.03314953,203.94,203.92,4.9031]
[1739266459002,0.03314953,203.94,203.93,4.9029]
[1739266459500,0.03314953,203.94,203.92,4.9031]
[1739266460403,0.03314953,203.94,203.9,0.03320552]
[1739266460592,13.00035963,203.94,203.9,0.03320552]
[1739266460997,1.4625,203.93,203.9,0.03320552]
[1739266461197,4.9033,203.91,203.9,0.03320552]
[1739266461802,12.9672101,203.91,203.78,12.9672101]
[1739266462002,4.9037,203.9,203.78,12.9672101]
[1739266462605,4.9038,203.89,203.84,4.9048]
[1739266463005,4.93744544,203.89,203.84,4.94199156]
[1739266463205,4.93744544,203.89,203.84,0.03709156]
[1739266464405,0.03354544,203.89,203.85,4.9048]
[1739266464902,0.03354544,203.89,203.84,0.03709156]
[1739266465304,0.03354544,203.89,203.88,4.9041]
[1739266466805,0.03354544,203.89,203.84,0.03709156]
[1739266467704,0.03354544,203.89,203.86,4.9043]
[1739266467900,0.03354544,203.89,203.84,0.03709156]
[1739266468100,0.03354544,203.89,203.87,4.9042]
[1739266468504,0.03354544,203.89,203.84,0.03709156]
[1739266468806,0.03354544,203.89,203.88,4.9041]
[1739266473610,0.03354544,203.89,203.88,13.21375706]
[1739266474805,0.03354544,203.89,203.88,4.9041]
[1739266475011,0.03354544,203.89,203.88,13.21375706]
[1739266476410,8.30965706,204.0,203.88,8.30965706]
[1739266476612,8.30965706,204.0,203.97,4.9018]
[1739266477007,8.30965706,204.0,203.92,8.30965706]
[1739266477207,4.9014,203.99,203.94,4.9024]
[1739266477611,13.21185706,203.96,203.94,0.03580495]
[1739266478009,8.30965706,203.96,203.94,0.03580495]
[1739266479813,4.9024,203.95,203.94,0.03580495]
[1739266480713,13.21185706,203.96,203.94,0.03580495]
[1739266480913,8.30965706,203.96,203.94,0.03580495]
[1739266481215,13.21175706,203.96,203.94,0.03580495]
[1739266481714,4.9021,203.96,203.94,0.03580495]
[1739266482114,4.9024,203.95,203.94,0.03580495]
[1739266482616,4.9022,203.96,203.94,0.03580495]
[1739266484018,15.9239303,203.98,203.94,0.03580495]
[1739266484918,4.9021,203.97,203.94,0.03580495]
[1739266485216,15.9239303,203.98,203.94,0.03580495]
[1739266485717,4.9024,203.95,203.94,0.03580495]
[1739266486217,4.902,203.97,203.94,0.03580495]
[1739266488116,20.8256303,203.98,203.94,4.93820495]
[1739266488320,15.9239303,203.98,203.94,0.03580495]
[1739266489518,4.9022,203.96,203.94,0.03580495]
[1739266490016,4.9024,203.95,203.94,0.03580495]
[1739266490919,4.9022,203.96,203.94,0.03580495]
[1739266491520,15.9239303,203.98,203.94,0.03580495]
[1739266491718,4.9024,203.95,203.94,0.03580495]
[1739266492021,15.9239303,203.98,203.88,4.904]
[1739266492321,4.9028,203.94,203.85,12.9845303]
[1739266492522,4.9028,203.94,203.89,4.9036]
[1739266492723,15.9239303,203.98,203.89,4.9036]
[1739266493024,0.03164649,203.96,203.91,0.03343953]
[1739266493724,4.9031,203.93,203.91,0.03343953]
[1739266494824,0.03164649,203.96,203.91,0.03343953]
[1739266495427,4.93404649,203.96,203.92,4.9029]
[1739266496024,4.9025,203.95,203.91,0.03343953]
[1739266496626,0.03164649,203.96,203.91,0.03343953]
[1739266496924,4.9031,203.92,203.91,0.03343953]
[1739266497730,0.03164649,203.96,203.91,0.03343953]
[1739266498524,0.03164649,203.96,203.92,4.903]
[1739266498730,0.03164649,203.96,203.91,0.03343953]
[1739266499329,4.93384649,203.96,203.92,4.9029]
[1739266500123,4.93384649,203.96,203.93,4.9029]
[1739266500332,0.03164649,203.96,203.91,0.03343953]
[1739266500833,0.03164649,203.96,203.95,4.9024]
[1739266501129,0.03164649,203.96,203.91,0.03343953]
[1739266501730,0.03164649,203.96,203.92,8.30732033]
[1739266502431,0.03164649,203.96,203.93,4.9028]
[1739266502932,0.03164649,203.96,203.91,4.93663953]
[1739266503225,0.03164649,203.96,203.91,0.03343953]
[1739266503226,8.30732033,203.95,203.91,0.03343953]
[1739266503432,13.20992033,203.95,203.91,0.03343953]
[1739266503631,8.30732033,203.93,203.91,0.03343953]
[1739266504033,4.9031,203.92,203.91,0.03343953]
[1739266509332,4.9041,203.88,203.84,4.905]
[1739266509536,8.30732033,203.86,203.8,8.30732033]
[1739266510439,8.30732033,203.82,203.75,8.30732033]
[1739266510634,8.30732033,203.82,203.81,0.03710448]
[1739266510831,8.30732033,203.82,203.75,8.30732033]
[1739266511140,4.9053,203.83,203.79,0.03111202]
[1739266511333,4.9053,203.83,203.77,13.21382033]
[1739266511334,8.30732033,203.84,203.77,8.30732033]
[1739266511535,0.03611596,203.82,203.79,0.03300969]
[1739266512437,13.24903629,203.82,203.79,0.03300969]
[1739266512834,8.30732033,203.8,203.79,0.03300969]
[1739266513034,13.21332033,203.8,203.79,0.03300969]
[1739266513239,8.30732033,203.8,203.71,8.30732033]
[1739266513439,8.30732033,203.77,203.69,202.30732033]
[1739266513735,8.30732033,203.75,203.69,8.30732033]
[1739266513933,8.30732033,203.75,203.67,8.30732033]
[1739266514137,8.30732033,203.75,203.68,4.9086]
[1739266514439,0.03466144,203.73,203.69,0.03741936]
[1739266514939,0.03466144,203.73,203.69,4.94601936]
[1739266515142,8.34198177,203.73,203.69,0.03741936]
[1739266515542,8.30732033,203.71,203.69,0.03741936]
[1739266515737,0.03466144,203.73,203.69,0.03741936]
[1739266517834,0.03466144,203.73,203.69,4.94601936]
[1739266518038,0.03466144,203.73,203.69,0.03741936]
[1739266519341,4.908,203.72,203.69,0.03741936]
[1739266519841,0.03466144,203.73,203.69,0.03741936]
[1739266520041,4.94236144,203.73,203.69,0.03741936]
[1739266520243,0.03466144,203.73,203.69,0.03741936]
[1739266520442,4.9079,203.72,203.69,0.03741936]
[1739266520643,13.01538125,203.71,203.61,27.20164273]
[1739266520946,13.01538125,203.68,203.61,27.20164273]
[1739266521153,4.9092,203.67,203.61,27.20164273]
[1739266521345,13.01538125,203.68,203.61,27.20164273]
[1739266521845,0.03382468,203.67,203.62,0.03656028]
[1739266522049,4.94292468,203.67,203.62,0.03656028]
[1739266522442,0.03382468,203.67,203.62,0.03656028]
[1739266523145,0.03382468,203.67,203.61,27.20164273]
[1739266523441,13.01538125,203.65,203.61,24.79534273]
[1739266523747,13.01538125,203.65,203.61,19.98194273]
[1739266524149,13.01538125,203.65,203.61,15.16854273]
[1739266524440,17.92568125,203.62,203.61,15.20031501]
[1739266524837,13.01538125,203.65,203.61,15.20031501]
[1739266525544,13.01538125,203.65,203.61,0.03177228]
[1739266526047,0.03382468,203.67,203.61,0.03177228]
[1739266526345,0.03382468,203.67,203.62,4.9103]
[1739266526543,0.03382468,203.67,203.61,0.03177228]
[1739266527047,0.03382468,203.67,203.61,4.94227228]
[1739266527248,0.03382468,203.67,203.61,0.03177228]
[1739266527746,0.03382468,203.67,203.61,4.94227228]
[1739266528146,0.03382468,203.67,203.62,4.9103]
[1739266528343,0.03382468,203.67,203.61,0.03177228]
[1739266530247,0.03382468,203.67,203.62,4.9102]
[1739266530446,0.03382468,203.67,203.61,0.03177228]
[1739266531451,0.03382468,203.67,203.63,4.91]
[1739266531649,0.03382468,203.67,203.61,0.03177228]
[1739266532049,0.03382468,203.67,203.63,4.91]
[1739266533046,0.03382468,203.67,203.61,0.03177228]
[1739266534146,0.03382468,203.67,203.66,4.9094]
[1739266534553,0.03382468,203.67,203.61,0.03177228]
[1739266534852,0.03382468,203.67,203.66,4.9094]
[1739266535552,0.03382468,203.67,203.63,4.9099]
[1739266535753,0.03382468,203.67,203.61,0.03177228]
[1739266536048,0.03382468,203.67,203.64,4.9096]
[1739266536351,0.03382468,203.67,203.61,0.03177228]
[1739266536553,0.03382468,203.67,203.66,4.9094]
[1739266537653,13.01538125,203.74,203.7,4.9083]
[1739266538152,13.01538125,203.74,203.65,4.9095]
[1739266538350,4.9077,203.73,203.62,4.5272]
[1739266538553,13.01538125,203.74,203.62,4.5272]
[1739266538755,13.01538125,203.74,203.7,4.9084]
[1739266539052,0.03512897,203.7,203.62,4.5272]
[1739266539250,0.03512897,203.7,203.69,4.9086]
[1739266546460,8.32851976,203.75,203.72,4.9079]
[1739266547162,8.32851976,203.75,203.68,8.32851976]
[1739266547661,0.03430048,203.74,203.69,0.03369976]
[1739266547863,0.03430048,203.74,203.73,4.9077]
[1739266548061,0.03430048,203.74,203.69,0.03369976]
[1739266548461,0.03430048,203.74,203.71,4.908]
[1739266550064,0.03430048,203.74,203.69,0.03369976]
[1739266550465,0.03430048,203.74,203.7,4.9083]
[1739266550664,0.03430048,203.74,203.69,0.03369976]
[1739266551263,0.03430048,203.74,203.71,4.908]
[1739266551465,0.03430048,203.74,203.69,0.03369976]
[1739266551865,0.03430048,203.74,203.72,4.9079]
[1739266552258,0.03430048,203.74,203.69,0.03369976]
[1739266552560,8.32851976,203.73,203.69,0.03369976]
[1739266552960,8.32851976,203.73,203.71,4.9081]
[1739266553265,8.32851976,203.73,203.69,0.03369976]
[1739266553966,0.03430048,203.74,203.69,0.03369976]
[1739266554565,0.03430048,203.74,203.73,4.9077]
[1739266554764,0.03430048,203.74,203.69,0.03369976]
[1739266555565,0.03430048,203.74,203.71,4.9079]
[1739266555768,8.32851976,203.73,203.69,0.03369976]
[1739266555958,4.9082,203.72,203.69,0.03369976]
[1739266556162,8.32851976,203.71,203.69,0.03369976]
[1739266556765,8.32851976,203.73,203.7,4.9084]
[1739266556964,8.32851976,203.73,203.69,0.03369976]
[1739266557166,13.23641976,203.73,203.69,4.94229976]
[1739266557465,8.32851976,203.73,203.69,0.03369976]
[1739266557769,4.9081,203.72,203.69,0.03369976]
[1739266557965,8.32851976,203.73,203.69,0.03369976]
[1739266558369,8.32851976,203.73,203.71,4.9082]
[1739266558568,8.32851976,203.73,203.69,0.03369976]
[1739266559369,8.32851976,203.71,203.69,0.03369976]
[1739266560669,8.32851976,203.71,203.69,4.94229976]
[1739266561066,8.32851976,203.73,203.69,0.03369976]
[1739266561260,0.03430048,203.74,203.71,4.9081]
[1739266561970,0.03430048,203.74,203.7,4.9083]
[1739266562170,0.03430048,203.74,203.69,0.03369976]
[1739266562171,4.9082,203.71,203.69,0.03369976]
[1739266562570,8.32851976,203.73,203.69,4.94229976]
[1739266563262,8.32851976,203.73,203.69,0.03369976]
[1739266564173,0.03430048,203.74,203.69,0.03369976]
[1739266564367,0.03430048,203.74,203.7,8.32851976]
[1739266566172,0.03430048,203.74,203.71,4.908]
[1739266566373,0.03430048,203.74,203.72,8.32851976]
[1739266566773,81.03266875,203.81,203.72,8.32851976]
[1739266566970,81.03266875,203.81,203.76,8.32851976]
[1739266567864,81.06882994,203.81,203.76,8.36071373]
[1739266568781,89.3973497,203.81,203.76,0.03219397]
[1739266569174,81.06882994,203.81,203.76,8.36071373]
[1739266569374,89.3973497,203.81,203.76,0.03219397]
[1739266569576,8.32851976,203.79,203.76,0.03219397]
[1739266571271,13.23471976,203.79,203.76,0.03219397]
[1739266572475,13.23521976,203.77,203.76,0.03219397]
[1739266574079,8.32851976,203.77,203.76,0.03219397]
[1739266574478,13.23521976,203.77,203.76,0.03219397]
[1739266574679,8.32851976,203.77,203.76,0.03219397]
[1739266577282,8.32851976,203.79,203.76,0.03219397]
[1739266577483,8.36468095,203.81,203.76,0.03219397]
[1739266578273,0.03616119,203.81,203.8,8.32851976]
[1739266578782,0.03616119,203.81,203.8,13.23451976]
[1739266580180,81.03266875,203.85,203.8,13.23451976]
[1739266580181,81.03266875,203.85,203.8,8.32851976]
[1739266580482,8.32851976,203.89,203.83,8.32851976]
[1739266580682,89.36118851,203.91,203.85,8.32851976]
[1739266580877,89.36118851,203.91,203.86,4.9045]
[1739266581079,89.36118851,203.91,203.85,8.32851976]
[1739266581382,0.03454828,203.9,203.86,0.03544323]
[1739266582485,13.0263905,203.9,203.86,0.03544323]
[1739266583783,4.9043,203.88,203.86,0.03544323]
[1739266583976,13.0263905,203.9,203.7,15.99874222]
[1739266583977,12.99184222,203.87,203.7,12.99184222]
[1739266584180,12.99184222,203.82,203.7,12.99184222]
[1739266584785,12.99184222,203.82,203.74,4.9074]
[1739266584981,12.99184222,203.85,203.73,12.99184222]
[1739266585183,0.03518094,203.8,203.76,0.03734392]
[1739266587088,0.03518094,203.8,203.77,4.9067]
[1739266588684,0.03518094,203.8,203.76,0.03734392]
[1739266589287,4.94118094,203.8,203.76,0.03734392]
[1739266590285,0.03518094,203.8,203.76,0.03734392]
[1739266590688,0.03518094,203.8,203.76,4.94434392]
[1739266590985,0.03518094,203.8,203.76,13.02918614]
[1739266591188,0.03518094,203.8,203.76,0.03734392]
[1739266591590,4.94118094,203.8,203.76,0.03734392]
[1739266592494,4.94118094,203.8,203.76,4.94424392]
[1739266592692,0.03518094,203.8,203.76,4.94424392]
[1739266592888,0.03518094,203.8,203.76,0.03734392]
[1739266593188,0.03518094,203.8,203.76,4.94404392]
[1739266594189,0.03518094,203.8,203.76,0.03734392]
[1739266594494,0.03518094,203.8,203.77,4.9067]
[1739266595298,0.03518094,203.8,203.76,4.94424392]
[1739266595494,4.94118094,203.8,203.76,4.94424392]
[1739266595795,0.03518094,203.8,203.76,0.03734392]
[1739266596300,4.94118094,203.8,203.76,0.03734392]
[1739266596895,4.94118094,203.8,203.76,4.94424392]
[1739266598396,0.03518094,203.8,203.76,0.03734392]
[1739266599200,0.03518094,203.8,203.77,4.9065]
[1739266599500,0.03518094,203.8,203.76,0.03734392]
[1739266599901,0.03518094,203.8,203.78,4.9064]
[1739266600397,0.03518094,203.8,203.76,0.03734392]
[1739266600601,0.03518094,203.8,203.77,4.9067]
[1739266601301,0.03518094,203.8,203.76,0.03734392]
[1739266601503,0.03518094,203.8,203.77,4.9067]
[1739266601904,0.03518094,203.8,203.76,0.03734392]
[1739266602097,4.9063,203.79,203.76,0.03734392]
[1739266602300,0.03518094,203.8,203.76,0.03734392]
[1739266603804,0.03518094,203.8,203.76,4.94414392]
[1739266603805,4.94118094,203.8,203.76,4.94414392]
[1739266604507,4.94118094,203.8,203.76,0.03734392]
[1739266604508,4.9067,203.78,203.76,0.03734392]
[1739266604707,8.35680547,203.8,203.76,0.03734392]
[1739266605808,4.9063,203.79,203.76,0.03734392]
[1739266606108,8.35680547,203.8,203.76,0.03734392]
[1739266606300,4.9067,203.77,203.76,0.03734392]
[1739266607609,4.9065,203.78,203.76,0.03734392]
[1739266607908,8.32162453,203.78,203.76,0.03734392]
[1739266608409,4.9067,203.77,203.76,0.03734392]
[1739266610007,13.22812453,203.78,203.76,0.03734392]
[1739266611711,8.32162453,203.78,203.76,0.03734392]
[1739266611906,4.9067,203.77,203.76,0.03734392]
[1739266613308,8.32162453,203.78,203.76,0.03734392]
[1739266613505,8.32162453,203.78,203.65,194.0]
[1739266613805,8.32162453,203.72,203.64,8.32162453]
[1739266614006,13.22962453,203.72,203.66,8.32162453]
[1739266614204,4.908,203.72,203.66,8.32162453]
[1739266614814,0.03178812,203.71,203.67,0.03736815]
[1739266615009,0.03178812,203.71,203.68,4.9088]
[1739266615315,0.03178812,203.71,203.67,0.03736815]
[1739266615614,4.9084,203.7,203.67,0.03736815]
[1739266615805,0.03178812,203.71,203.67,0.03736815]
[1739266617013,4.93998812,203.71,203.67,0.03736815]
[1739266617514,0.03178812,203.71,203.67,0.03736815]
[1739266618014,0.03178812,203.71,203.68,4.9087]
[1739266618520,0.03178812,203.71,203.69,4.9085]
[1739266620417,0.03178812,203.71,203.67,0.03736815]
[1739266620613,0.03178812,203.71,203.7,4.9084]
[1739266620923,0.03178812,203.71,203.7,13.23002453]
[1739266621310,0.03178812,203.71,203.7,4.9084]
[1739266621512,0.03178812,203.71,203.67,0.03736815]
[1739266622218,0.03178812,203.71,203.68,4.9087]
[1739266622419,0.03178812,203.71,203.67,0.03736815]
[1739266622821,0.03178812,203.71,203.68,4.9088]
[1739266623014,0.03178812,203.71,203.67,0.03736815]
[1739266623221,0.03178812,203.71,203.68,8.32162453]
[1739266623720,0.03178812,203.71,203.7,4.9084]
[1739266623921,0.03178812,203.71,203.7,13.23002453]
[1739266624920,8.32162453,203.78,203.75,4.9071]
[1739266625125,8.32162453,203.78,203.72,8.32162453]
[1739266626022,0.03184564,203.77,203.73,0.03178725]
[1739266626717,0.03184564,203.77,203.74,4.9074]
[1739266626915,0.03184564,203.77,203.73,0.03178725]
[1739266627121,8.32162453,203.76,203.73,0.03178725]
[1739266627721,0.03184564,203.77,203.73,0.03178725]
[1739266628522,8.32162453,203.76,203.73,0.03178725]
[1739266628927,4.9072,203.75,203.73,0.03178725]
[1739266629125,8.32162453,203.74,203.73,0.03178725]
[1739266629520,13.22902453,203.74,203.73,0.03178725]
[1739266629723,8.32162453,203.74,203.73,0.03178725]
[1739266630128,13.22902453,203.74,203.73,0.03178725]
[1739266631324,4.9079,203.72,203.62,8.32162453]
[1739266631520,8.32162453,203.7,203.62,8.32162453]
[1739266631923,13.22952453,203.72,203.67,4.9091]
[1739266632422,13.22952453,203.72,203.64,8.32162453]
[1739266632629,8.35866707,203.72,203.68,4.9086]
[1739266633024,8.35407378,203.72,203.68,4.94017239]
[1739266633529,8.35407378,203.72,203.68,0.03157239]
[1739266633924,4.9082,203.71,203.68,0.03157239]
[1739266634329,8.35407378,203.72,203.68,0.03157239]
[1739266634530,13.26227378,203.72,203.68,0.03157239]
[1739266634922,8.35407378,203.72,203.68,0.03157239]
[1739266635127,8.35407378,203.72,203.68,4.94027239]
[1739266635327,8.35407378,203.72,203.68,0.03157239]
[1739266635631,4.9084,203.71,203.68,0.03157239]
[1739266635831,8.35407378,203.72,203.68,0.03157239]
[1739266636229,4.9082,203.71,203.68,0.03157239]
[1739266636627,8.35407378,203.72,203.68,0.03157239]
[1739266636828,4.9082,203.71,203.68,0.03157239]
[1739266637028,8.35407378,203.72,203.68,0.03157239]
[1739266637535,4.9086,203.7,203.68,0.03157239]
[1739266637729,8.32162453,203.7,203.68,0.03157239]
[1739266638230,13.23002453,203.7,203.68,0.03157239]
[1739266639136,8.32162453,203.7,203.68,0.03157239]
[1739266639732,8.35407378,203.72,203.68,4.94037239]
[1739266640133,8.35407378,203.72,203.68,0.03157239]
[1739266640336,8.35407378,203.72,203.69,4.9086]
[1739266643934,8.35407378,203.72,203.68,0.03157239]
[1739266644238,8.35407378,203.72,203.68,4.94037239]
[1739266644528,8.35407378,203.72,203.68,0.03157239]
[1739266645538,4.9084,203.7,203.68,0.03157239]
[1739266645738,8.35407378,203.72,203.68,0.03157239]
[1739266646339,4.9082,203.71,203.68,0.03157239]
[1739266646930,4.9085,203.7,203.68,0.03157239]
[1739266647132,8.35407378,203.72,203.68,0.03157239]
[1739266647336,8.32162453,203.7,203.68,0.03157239]
[1739266648838,4.9086,203.69,203.68,0.03157239]
[1739266649141,4.9086,203.69,203.54,198.6163]
[1739266649142,8.32162453,203.7,203.58,8.32162453]
[1739266649341,4.9099,203.64,203.59,4.911]
[1739266650237,4.94455037,203.64,203.59,4.94840456]
[1739266650643,4.94455037,203.64,203.6,4.9107]
[1739266651146,0.03465037,203.64,203.6,4.9107]
[1739266653643,8.32162453,203.61,203.59,0.03740456]
[1739266654247,8.32162453,203.63,203.59,4.94840456]
[1739266655245,13.23192453,203.63,203.59,0.03740456]
[1739266657452,13.23192453,203.63,203.59,4.94840456]
[1739266658756,13.23192453,203.63,203.59,0.03740456]
[1739266659946,4.9103,203.62,203.59,0.03740456]
[1739266662450,13.23222453,203.61,203.59,0.03740456]
[1739266662660,8.32162453,203.61,203.59,0.03740456]
[1739266665061,8.32162453,203.61,203.59,4.94820456]
[1739266666260,8.32162453,203.61,203.59,0.03740456]
[1739266666464,13.23172453,203.63,203.59,0.03740456]
[1739266667065,8.32162453,203.63,203.59,0.03740456]
[1739266667261,8.32162453,203.63,203.61,4.9105]
[1739266670667,8.32162453,203.63,203.6,4.9107]
[1739266674974,0.03465037,203.64,203.61,4.9105]
[1739266678273,4.94455037,203.64,203.61,4.9105]
[1739266678478,4.94455037,203.64,203.6,4.9108]
[1739266678976,0.03465037,203.64,203.61,4.9105]
[1739266679872,4.94465037,203.64,203.59,0.03740456]
[1739266680476,4.94465037,203.64,203.6,4.9106]
[1739266681071,0.03465037,203.64,203.61,4.9105]
[1739266681871,4.94455037,203.64,203.61,4.9105]
[1739266682072,0.03465037,203.64,203.59,0.03740456]
[1739266682476,4.9101,203.63,203.59,0.03740456]
[1739266683777,4.9101,203.63,203.6,4.9108]
[1739266684675,13.23172453,203.63,203.6,4.9108]
[1739266685180,4.9103,203.62,203.59,0.03740456]
[1739266686674,8.32162453,203.63,203.59,0.03740456]
[1739266686975,4.9106,203.61,203.59,0.03740456]
[1739266687176,8.32162453,203.63,203.59,0.03740456]
[1739266687735,4.9105,203.62,203.59,0.03740456]
[1739266687893,8.32162453,203.61,203.59,0.03740456]
[1739266688367,13.23222453,203.61,203.59,0.03740456]
[1739266688573,8.32162453,203.61,203.59,0.03740456]
[1739266688773,4.9108,203.6,203.59,0.03740456]
[1739266689677,8.32162453,203.61,203.59,0.03740456]
[1739266690676,4.9108,203.6,203.59,0.03740456]
[1739266694882,8.32162453,203.61,203.59,0.03740456]
[1739266695973,4.9108,203.6,203.59,0.03740456]
[1739266700983,4.9108,203.6,203.59,4.56e-06]
[1739266702282,6.3579,203.6,203.59,4.56e-06]
[1739266708193,4.9108,203.6,203.59,4.56e-06]
[1739266710794,8.32162453,203.61,203.59,4.56e-06]
[1739266711093,8.32162453,203.63,203.59,4.56e-06]
[1739266711490,0.03465037,203.64,203.59,4.56e-06]
[1739266711691,0.03465037,203.64,203.6,8.32162453]
[1739266712988,0.03465037,203.64,203.62,4.9102]
[1739266715598,0.03465037,203.64,203.63,4.9101]